[Event "1st SOA-GM Festival 2024"]
[Site "Bhubaneswar"]
[Date "2024.02.01"]
[Round "1.1"]
[White "Ghosh, Diptayan"]
[Black "John Veny Akkarakaran"]
[Result "1-0"]
[WhiteElo "2568"]
[BlackElo "2112"]
[PlyCount "147"]
[EventDate "2024.02.01"]
[EventType "swiss"]
[EventCountry "IND"]
[TimeControl "5400+30"]

1. Nf3 {[%emt 0:00:28]} Nf6 {[%emt 0:00:31]} 2. c4 {[%emt 0:00:13]} e6 {[%emt 0:00:47]} 3. Nc3 {[%emt 0:00:15]} d5 {[%emt 0:00:28]} 4. e3 {[%emt 0:00:05]} Be7 {[%emt 0:03:00]} 5. b3 {[%emt 0:00:47]} O-O {[%emt 0:00:38]} 6. Bb2 {[%emt 0:00:04]} c5 {[%emt 0:01:44]} 7. cxd5 {[%emt 0:00:52]} exd5 {[%emt 0:01:15]} 8. d4 {[%emt 0:01:11]} Nc6 {[%emt 0:01:19]} 9. Be2 {[%emt 0:00:37]} Ne4 {[%emt 0:03:36]} 10. dxc5 {[%emt 0:02:05]} Qa5 {[%emt 0:07:35]} 11. Rc1 {[%emt 0:00:07]} Bf6 {[%emt 0:02:06]} 12. Nd4 {[%emt 0:00:06]} Nxc5 {[%emt 0:08:16]} 13. Nxc6 {[%emt 0:00:18]} bxc6 {[%emt 0:00:10]} 14. O-O {[%emt 0:00:06]} Ne4 {[%emt 0:14:11]} 15. Qc2 {[%emt 0:00:08]} Nxc3 {[%emt 0:07:24]} 16. Bxc3 {[%emt 0:00:17]} Bxc3 {[%emt 0:00:29]} 17. Qxc3 {[%emt 0:00:05]} Qxa2 {[%emt 0:04:38]} 18. Rc2 {[%emt 0:00:13]} Qa3 {[%emt 0:02:01]} 19. Ra1 {[%emt 0:00:05]} Qd6 {[%emt 0:09:26]} 20. Qxc6 {[%emt 0:00:15]} Qxc6 {[%emt 0:05:49]} 21. Rxc6 {[%emt 0:00:08]} Rb8 {[%emt 0:01:18]} 22. Rc3 {[%emt 0:09:10]} Be6 {[%emt 0:02:19]} 23. Rxa7 {[%emt 0:02:25]} d4 {[%emt 0:01:38]} 24. exd4 {[%emt 0:00:15]} Rfd8 {[%emt 0:00:51]} 25. h3 {[%emt 0:09:00]} Rxd4 {[%emt 0:05:03]} 26. Bc4 {[%emt 0:01:16]} Rd6 {[%emt 0:04:48]} 27. Rf3 {[%emt 0:02:45]} Bxc4 {[%emt 0:06:29]} 28. bxc4 {[%emt 0:00:02]} Rf8 {[%emt 0:01:06]} 29. Rc7 {[%emt 0:04:21]} Rd1+ {[%emt 0:00:18]} 30. Kh2 {[%emt 0:00:04]} Rc1 {[%emt 0:00:01]} 31. Kg3 {[%emt 0:05:06]} Rc2 {[%emt 0:00:41]} 32. Rf4 {[%emt 0:02:57]} Rc3+ {[%emt 0:01:45]} 33. Rf3 {[%emt 0:11:32]} Rc2 {[%emt 0:00:04]} 34. h4 {[%emt 0:01:27]} g6 {[%emt 0:02:17]} 35. Kf4 {[%emt 0:04:34]} Re8 {[%emt 0:01:22]} 36. g4 {[%emt 0:00:51]} h6 {[%emt 0:01:20]} 37. Kg3 {[%emt 0:00:54]} Rf8 {[%emt 0:00:52]} 38. g5 {[%emt 0:02:09]} hxg5 {[%emt 0:00:11]} 39. hxg5 {[%emt 0:00:01]} Kg7 {[%emt 0:00:56]} 40. Rf6 {[%emt 0:01:37]} Kg8 {[%emt 0:00:38]} 41. Kf3 {[%emt 0:02:22]} Ra8 {[%emt 0:00:21]} 42. Ke4 {[%emt 0:07:00]} Rd8 {[%emt 0:01:02]} 43. c5 {[%emt 0:03:30]} Rc4+ {[%emt 0:00:39]} 44. Ke5 {[%emt 0:01:43]} Rc2 {[%emt 0:00:29]} 45. f3 {[%emt 0:05:16]} Re2+ {[%emt 0:00:32]} 46. Kf4 {[%emt 0:00:01]} Rd4+ {[%emt 0:00:32]} 47. Kg3 {[%emt 0:00:02]} Re5 {[%emt 0:00:31]} 48. c6 {[%emt 0:04:42]} Rxg5+ {[%emt 0:01:04]} 49. Kf2 {[%emt 0:21:33]} Rc5 {[%emt 0:00:00]} 50. f4 {[%emt 0:00:00]} g5 {[%emt 0:00:22]} 51. fxg5 {[%emt 0:00:00]} Rdd5 {[%emt 0:00:32]} 52. g6 {[%emt 0:00:00]} fxg6 {[%emt 0:00:01]} 53. Rxg6+ {[%emt 0:00:00]} Kf8 {[%emt 0:00:16]} 54. Rh6 {[%emt 0:00:00]} Rh5 {[%emt 0:00:59]} 55. Rf6+ {[%emt 0:00:00]} Ke8 {[%emt 0:00:43]} 56. Re6+ {[%emt 0:00:00]} Kf8 {[%emt 0:00:04]} 57. Rd6 {[%emt 0:00:00]} Rhd5 {[%emt 0:01:00]} 58. Rxd5 {[%emt 0:00:00]} Rxd5 {[%emt 0:00:01]} 59. Rh7 {[%emt 0:00:00]} Rc5 {[%emt 0:00:47]} 60. c7 {[%emt 0:00:00]} Ke8 {[%emt 0:00:12]} 61. Ke3 {[%emt 0:00:00]} Rc1 {[%emt 0:00:33]} 62. Kd4 {[%emt 0:00:00]} Rc2 {[%emt 0:00:48]} 63. Kd5 {[%emt 0:00:00]} Rc1 {[%emt 0:00:05]} 64. Kd6 {[%emt 0:00:00]} Rd1+ {[%emt 0:00:14]} 65. Kc6 {[%emt 0:00:00]} Rc1+ {[%emt 0:00:10]} 66. Kb7 {[%emt 0:00:00]} Rb1+ {[%emt 0:00:07]} 67. Kc8 {[%emt 0:00:00]} Rb2 {[%emt 0:00:04]} 68. Rh1 {[%emt 0:00:00]} Ke7 {[%emt 0:01:30]} 69. Re1+ {[%emt 0:00:00]} Kf6 {[%emt 0:00:25]} 70. Re4 {[%emt 0:00:00]} Kf5 {[%emt 0:00:27]} 71. Re7 {[%emt 0:00:00]} Kf6 {[%emt 0:01:03]} 72. Kd8 {[%emt 0:00:00]} Rh2 {[%emt 0:00:13]} 73. c8=Q {[%emt 0:00:00]} Rh8+ {[%emt 0:00:03]} 74. Re8 {[%emt 0:00:00]} 1-0

[Event "1st SOA-GM Festival 2024"]
[Site "Bhubaneswar"]
[Date "2024.02.01"]
[Round "1.2"]
[White "Andyka, Pitra"]
[Black "Fawzy, Adham"]
[Result "0-1"]
[WhiteElo "2105"]
[BlackElo "2522"]
[PlyCount "82"]
[EventDate "2024.02.01"]
[EventType "swiss"]
[EventCountry "IND"]
[TimeControl "5400+30"]

1. e4 {[%emt 0:00:22]} c5 {[%emt 0:05:39]} 2. Nc3 {[%emt 0:07:02]} Nc6 {[%emt 0:00:14]} 3. Bb5 {[%emt 0:01:17]} Nd4 {[%emt 0:00:56]} 4. Nf3 {[%emt 0:00:56]} a6 {[%emt 0:00:13]} 5. Bd3 {[%emt 0:01:05]} g6 {[%emt 0:00:40]} 6. Nxd4 {[%emt 0:03:17]} cxd4 {[%emt 0:00:14]} 7. Ne2 {[%emt 0:00:06]} d5 {[%emt 0:00:31]} 8. exd5 {[%emt 0:01:12]} Qxd5 {[%emt 0:01:42]} 9. O-O {[%emt 0:00:11]} Bg7 {[%emt 0:01:08]} 10. c3 {[%emt 0:11:25]} Nh6 {[%emt 0:02:16]} 11. Ng3 {[%emt 0:05:48]} O-O {[%emt 0:02:58]} 12. Re1 {[%emt 0:02:33]} Ng4 {[%emt 0:02:50]} 13. h3 {[%emt 0:17:40]} Ne5 {[%emt 0:01:22]} 14. Be4 {[%emt 0:00:24]} Qd6 {[%emt 0:01:38]} 15. cxd4 {[%emt 0:11:08]} Qxd4 {[%emt 0:03:49]} 16. d3 {[%emt 0:00:32]} f5 {[%emt 0:03:40]} 17. Bf3 {[%emt 0:01:05]} Nxf3+ {[%emt 0:03:53]} 18. Qxf3 {[%emt 0:00:19]} e5 {[%emt 0:00:03]} 19. Be3 {[%emt 0:02:08]} Qxd3 {[%emt 0:03:47]} 20. Rad1 {[%emt 0:07:57]} Qb5 {[%emt 0:01:11]} 21. Rd5 {[%emt 0:01:24]} Qxb2 {[%emt 0:06:21]} 22. Bc5 {[%emt 0:00:38]} e4 {[%emt 0:01:48]} 23. Qd1 {[%emt 0:00:56]} Re8 {[%emt 0:05:20]} 24. Rd2 {[%emt 0:01:06]} Qb5 {[%emt 0:01:31]} 25. Bd4 {[%emt 0:00:14]} Bxd4 {[%emt 0:00:36]} 26. Rxd4 {[%emt 0:00:01]} Be6 {[%emt 0:00:19]} 27. Qd2 {[%emt 0:01:11]} Qe5 {[%emt 0:02:34]} 28. Rd1 {[%emt 0:03:17]} e3 {[%emt 0:02:52]} 29. Qb2 {[%emt 0:02:37]} b5 {[%emt 0:04:38]} 30. f4 {[%emt 0:02:51]} Qf6 {[%emt 0:00:33]} 31. Qa3 {[%emt 0:00:27]} Bc4 {[%emt 0:00:54]} 32. Rd6 {[%emt 0:00:45]} Re6 {[%emt 0:00:18]} 33. Rxe6 {[%emt 0:08:35]} Qxe6 {[%emt 0:00:02]} 34. Qc5 {[%emt 0:02:41]} e2 {[%emt 0:00:48]} 35. Re1 {[%emt 0:00:03]} Rd8 {[%emt 0:00:12]} 36. Kf2 {[%emt 0:00:33]} Qd6 {[%emt 0:00:43]} 37. Qxd6 {[%emt 0:01:59]} Rxd6 {[%emt 0:00:02]} 38. Nxe2 {[%emt 0:00:14]} Rd2 {[%emt 0:00:26]} 39. Ke3 {[%emt 0:00:17]} Rxe2+ {[%emt 0:00:39]} 40. Rxe2 {[%emt 0:00:12]} Bxe2 {[%emt 0:00:05]} 41. Kxe2 {[%emt 0:00:05]} Kf7 {[%emt 0:00:06]} 0-1

[Event "1st SOA-GM Festival 2024"]
[Site "Bhubaneswar"]
[Date "2024.02.01"]
[Round "1.3"]
[White "Das, Sayantan"]
[Black "Priyanka, Kumari"]
[Result "1-0"]
[WhiteElo "2514"]
[BlackElo "1881"]
[PlyCount "147"]
[EventDate "2024.02.01"]
[EventType "swiss"]
[EventCountry "IND"]
[TimeControl "5400+30"]

1. e4 {[%emt 0:00:14]} e5 {[%emt 0:00:23]} 2. Nf3 {[%emt 0:00:14]} Nc6 {[%emt 0:00:22]} 3. Bb5 {[%emt 0:00:16]} a6 {[%emt 0:00:20]} 4. Ba4 {[%emt 0:00:07]} d6 {[%emt 0:00:11]} 5. O-O {[%emt 0:01:22]} Bd7 {[%emt 0:00:16]} 6. c4 {[%emt 0:00:19]} g6 {[%emt 0:05:41]} 7. d4 {[%emt 0:02:44]} Bg7 {[%emt 0:01:28]} 8. Bg5 {[%emt 0:03:12]} f6 {[%emt 0:03:12]} 9. Be3 {[%emt 0:01:08]} exd4 {[%emt 0:16:09]} 10. Nxd4 {[%emt 0:01:02]} Nge7 {[%emt 0:05:22]} 11. Nc3 {[%emt 0:10:09]} O-O {[%emt 0:09:28]} 12. c5 {[%emt 0:01:18]} Nxd4 {[%emt 0:03:49]} 13. Bxd4 {[%emt 0:03:19]} Bxa4 {[%emt 0:08:01]} 14. Qxa4 {[%emt 0:04:46]} Nc6 {[%emt 0:07:14]} 15. Qb3+ {[%emt 0:04:39]} Rf7 {[%emt 0:06:35]} 16. Be3 {[%emt 0:01:48]} dxc5 {[%emt 0:01:01]} 17. Bxc5 {[%emt 0:02:16]} b6 {[%emt 0:00:29]} 18. Be3 {[%emt 0:04:32]} Na5 {[%emt 0:01:50]} 19. Qc2 {[%emt 0:00:19]} Nc4 {[%emt 0:07:09]} 20. Bf4 {[%emt 0:04:45]} c6 {[%emt 0:05:26]} 21. Ne2 {[%emt 0:02:28]} b5 {[%emt 0:02:11]} 22. b3 {[%emt 0:00:21]} Na5 {[%emt 0:00:57]} 23. Rad1 {[%emt 0:03:04]} Qe8 {[%emt 0:01:03]} 24. h4 {[%emt 0:06:19]} f5 {[%emt 0:03:19]} 25. Ng3 {[%emt 0:02:43]} fxe4 {[%emt 0:01:02]} 26. Bd2 {[%emt 0:00:27]} Nb7 {[%emt 0:00:22]} 27. Nxe4 {[%emt 0:01:09]} Re7 {[%emt 0:04:20]} 28. Rde1 {[%emt 0:04:35]} Rc8 {[%emt 0:02:14]} 29. h5 {[%emt 0:03:54]} c5 {[%emt 0:03:03]} 30. h6 {[%emt 0:05:23]} Be5 {[%emt 0:00:29]} 31. Bc3 {[%emt 0:04:04]} Qf8 {[%emt 0:00:27]} 32. Re3 {[%emt 0:04:54]} Rce8 {[%emt 0:01:27]} 33. Rfe1 {[%emt 0:00:56]} Nd6 {[%emt 0:01:06]} 34. Nxc5 {[%emt 0:08:40]} Bxc3 {[%emt 0:00:19]} 35. Qxc3 {[%emt 0:00:16]} Re5 {[%emt 0:01:15]} 36. Re4 Rxe4 {[%emt 0:00:00]} 37. Rxe4 {[%emt 0:00:39]} Qxh6 {[%emt 0:00:19]} 38. Rxe8+ {[%emt 0:01:14]} Nxe8 {[%emt 0:00:05]} 39. Nxa6 {[%emt 0:00:08]} Qg5 {[%emt 0:00:29]} 40. Nc5 {[%emt 0:04:02]} Qd5 {[%emt 0:00:28]} 41. Nd3 {[%emt 0:02:01]} Nd6 {[%emt 0:00:24]} 42. a4 {[%emt 0:00:39]} Ne4 {[%emt 0:01:10]} 43. Qc8+ {[%emt 0:02:16]} Kf7 {[%emt 0:00:26]} 44. Qc7+ {[%emt 0:00:13]} Kg8 {[%emt 0:00:34]} 45. Qb8+ {[%emt 0:00:27]} Kf7 {[%emt 0:00:31]} 46. Qxb5 {[%emt 0:00:30]} Qxb5 {[%emt 0:00:29]} 47. axb5 {[%emt 0:00:02]} Ke6 {[%emt 0:00:07]} 48. Kh2 {[%emt 0:02:06]} Kd5 {[%emt 0:00:24]} 49. Kh3 {[%emt 0:00:29]} Nd6 {[%emt 0:00:55]} 50. b6 {[%emt 0:00:11]} Kd4 {[%emt 0:00:26]} 51. Nb2 {[%emt 0:01:58]} Kc3 {[%emt 0:00:17]} 52. Nc4 {[%emt 0:00:26]} Nb7 {[%emt 0:00:06]} 53. Kg4 {[%emt 0:00:07]} Kxb3 {[%emt 0:00:17]} 54. Ne5 {[%emt 0:00:06]} Kb4 {[%emt 0:00:23]} 55. Kg5 {[%emt 0:00:09]} Kb5 {[%emt 0:00:11]} 56. Kh6 {[%emt 0:00:25]} Kxb6 {[%emt 0:00:14]} 57. Kxh7 {[%emt 0:00:06]} Kc5 {[%emt 0:00:22]} 58. Kxg6 {[%emt 0:00:37]} Kd5 {[%emt 0:00:59]} 59. Kf6 {[%emt 0:01:17]} Nd6 {[%emt 0:01:06]} 60. f3 {[%emt 0:00:24]} Ne8+ {[%emt 0:00:25]} 61. Kf5 {[%emt 0:00:31]} Ng7+ {[%emt 0:00:24]} 62. Kg6 {[%emt 0:00:19]} Ne8 {[%emt 0:01:12]} 63. Ng4 {[%emt 0:00:21]} Nd6 {[%emt 0:00:30]} 64. Nf6+ {[%emt 0:01:05]} Ke5 {[%emt 0:00:20]} 65. Nh5 {[%emt 0:00:42]} Nf5 {[%emt 0:00:34]} 66. f4+ {[%emt 0:00:09]} Ke4 {[%emt 0:00:19]} 67. g4 {[%emt 0:00:25]} Ne3 {[%emt 0:00:37]} 68. f5 {[%emt 0:00:36]} Kf3 {[%emt 0:00:54]} 69. g5 {[%emt 0:00:34]} Kg4 {[%emt 0:00:23]} 70. Ng7 {[%emt 0:00:51]} Nc4 {[%emt 0:00:35]} 71. Kf6 {[%emt 0:00:22]} Nd6 {[%emt 0:00:16]} 72. g6 {[%emt 0:00:28]} Kf4 {[%emt 0:00:41]} 73. Ne6+ {[%emt 0:00:15]} Kg4 {[%emt 0:00:28]} 74. g7 {[%emt 0:00:09]} 1-0

[Event "1st SOA-GM Festival 2024"]
[Site "Bhubaneswar"]
[Date "2024.02.01"]
[Round "1.4"]
[White "Nimay Agrawal"]
[Black "Savchenko, Boris"]
[Result "0-1"]
[WhiteElo "2067"]
[BlackElo "2489"]
[PlyCount "139"]
[EventDate "2024.02.01"]
[EventType "swiss"]
[EventCountry "IND"]
[TimeControl "5400+30"]

1. e4 {[%emt 0:00:07]} g6 {[%emt 0:00:30]} 2. d4 {[%emt 0:00:56]} Bg7 {[%emt 0:00:07]} 3. Nc3 {[%emt 0:00:52]} d6 {[%emt 0:01:31]} 4. Nf3 {[%emt 0:02:35]} Nf6 {[%emt 0:02:32]} 5. h3 {[%emt 0:03:36]} O-O {[%emt 0:00:31]} 6. Bc4 {[%emt 0:02:05]} Nxe4 {[%emt 0:03:24]} 7. Nxe4 {[%emt 0:02:33]} d5 {[%emt 0:00:08]} 8. Bd3 {[%emt 0:02:05]} dxe4 {[%emt 0:00:10]} 9. Bxe4 {[%emt 0:00:12]} Nd7 {[%emt 0:00:05]} 10. O-O {[%emt 0:01:44]} c5 {[%emt 0:07:00]} 11. c3 {[%emt 0:03:10]} cxd4 {[%emt 0:01:14]} 12. Nxd4 {[%emt 0:01:49]} Nc5 {[%emt 1:19:18]} 13. Bc2 {[%emt 0:01:53]} Qb6 {[%emt 0:00:00]} 14. Nb3 {[%emt 0:04:59]} Na4 {[%emt 0:00:00]} 15. Qe2 {[%emt 0:03:36]} e5 {[%emt 0:00:00]} 16. Be3 {[%emt 0:15:50]} Qc7 {[%emt 0:00:00]} 17. Bd3 {[%emt 0:00:55]} a6 {[%emt 0:00:00]} 18. f4 {[%emt 0:07:32]} e4 {[%emt 0:00:00]} 19. Bxe4 {[%emt 0:09:41]} Re8 {[%emt 0:00:00]} 20. Qf3 {[%emt 0:02:10]} Nxb2 {[%emt 0:00:00]} 21. Bd4 {[%emt 0:01:15]} Nc4 {[%emt 0:00:00]} 22. f5 {[%emt 0:06:02]} Nd6 {[%emt 0:00:00]} 23. Bxg7 {[%emt 0:06:10]} Kxg7 {[%emt 0:00:00]} 24. f6+ {[%emt 0:01:21]} Kh8 {[%emt 0:00:00]} 25. Bc2 {[%emt 0:02:41]} b5 {[%emt 0:00:00]} 26. Qg3 {[%emt 0:06:58]} Bb7 {[%emt 0:00:00]} 27. h4 {[%emt 0:01:40]} Re2 {[%emt 0:00:00]} 28. Rf2 {[%emt 0:00:45]} Rxf2 {[%emt 0:01:38]} 29. Qxf2 {[%emt 0:00:17]} Qxc3 {[%emt 0:03:47]} 30. Rd1 {[%emt 0:00:38]} Ne4 {[%emt 0:02:13]} 31. Bxe4 {[%emt 0:01:38]} Bxe4 {[%emt 0:00:05]} 32. Qd4 {[%emt 0:00:09]} Qxd4+ {[%emt 0:00:15]} 33. Rxd4 {[%emt 0:00:02]} Bb1 {[%emt 0:00:34]} 34. Nc5 {[%emt 0:00:49]} h5 {[%emt 0:01:35]} 35. a4 {[%emt 0:01:23]} bxa4 {[%emt 0:00:51]} 36. Rxa4 {[%emt 0:01:52]} a5 {[%emt 0:00:28]} 37. Nb3 {[%emt 0:01:26]} Ra6 {[%emt 0:00:14]} 38. Rxa5 {[%emt 0:00:50]} Rxf6 {[%emt 0:00:07]} 39. Nd2 {[%emt 0:00:12]} Bd3 {[%emt 0:00:19]} 40. Nf3 {[%emt 0:00:43]} Rf4 {[%emt 0:01:54]} 41. Rd5 {[%emt 0:02:39]} Ba6 {[%emt 0:00:00]} 42. Rd4 {[%emt 0:00:43]} Rf5 {[%emt 0:00:00]} 43. Ng5 {[%emt 0:00:18]} Kg7 {[%emt 0:00:10]} 44. Rd7 {[%emt 0:00:50]} Bc4 {[%emt 0:00:56]} 45. Rc7 {[%emt 0:00:58]} Bd5 {[%emt 0:00:40]} 46. Rc5 {[%emt 0:00:32]} Kf6 {[%emt 0:00:06]} 47. Ra5 {[%emt 0:00:18]} Ke5 {[%emt 0:01:38]} 48. Nh3 {[%emt 0:03:01]} Kd4 {[%emt 0:00:00]} 49. Ng5 {[%emt 0:00:00]} Ke3 {[%emt 0:00:00]} 50. Ra3+ {[%emt 0:00:00]} Kf4 {[%emt 0:00:00]} 51. g3+ {[%emt 0:00:58]} Kg4 {[%emt 0:00:03]} 52. Rd3 {[%emt 0:00:12]} f6 {[%emt 0:01:45]} 53. Nh7 {[%emt 0:00:18]} Bg8 {[%emt 0:00:39]} 54. Nf8 {[%emt 0:00:11]} g5 {[%emt 0:00:10]} 55. hxg5 {[%emt 0:00:44]} fxg5 {[%emt 0:00:06]} 56. Nd7 {[%emt 0:00:30]} Kh3 {[%emt 0:00:34]} 57. Re3 {[%emt 0:00:21]} Ra5 {[%emt 0:01:10]} 58. Nf6 {[%emt 0:00:31]} Ra1+ {[%emt 0:00:17]} 59. Kf2 {[%emt 0:00:14]} Bc4 {[%emt 0:00:25]} 60. g4+ {[%emt 0:00:18]} Kh2 {[%emt 0:00:18]} 61. Re1 {[%emt 0:01:27]} Ra2+ {[%emt 0:00:46]} 62. Kf3 {[%emt 0:00:06]} h4 {[%emt 0:00:13]} 63. Re5 {[%emt 0:00:44]} Kg1 {[%emt 0:00:19]} 64. Re1+ {[%emt 0:00:35]} Bf1 {[%emt 0:00:30]} 65. Nd5 {[%emt 0:00:49]} Rf2+ {[%emt 0:00:30]} 66. Ke4 {[%emt 0:00:19]} h3 {[%emt 0:00:08]} 67. Ne3 {[%emt 0:00:17]} h2 {[%emt 0:00:07]} 68. Rxf1+ {[%emt 0:00:51]} Rxf1 {[%emt 0:00:08]} 69. Nxf1 {[%emt 0:00:04]} h1=Q+ {[%emt 0:00:11]} 70. Kd4 {[%emt 0:01:31]} 0-1

[Event "1st SOA-GM Festival 2024"]
[Site "Bhubaneswar"]
[Date "2024.02.01"]
[Round "1.5"]
[White "Fedorov, Alexei"]
[Black "Sambarta Banerjee"]
[Result "1-0"]
[WhiteElo "2457"]
[BlackElo "2064"]
[PlyCount "55"]
[EventDate "2024.02.01"]
[EventType "swiss"]
[EventCountry "IND"]
[TimeControl "5400+30"]

1. e4 {[%emt 0:00:04]} c6 {[%emt 0:02:14]} 2. d4 {[%emt 0:00:08]} d5 {[%emt 0:00:03]} 3. e5 {[%emt 0:00:07]} Bf5 {[%emt 0:00:07]} 4. Nd2 {[%emt 0:00:11]} e6 {[%emt 1:30:06]} 5. Nb3 {[%emt 0:00:13]} Nd7 {[%emt 0:00:00]} 6. Nf3 {[%emt 0:00:31]} a6 {[%emt 0:00:00]} 7. Be2 {[%emt 0:00:37]} c5 {[%emt 0:00:00]} 8. c3 {[%emt 0:00:11]} Rc8 {[%emt 0:00:00]} 9. dxc5 {[%emt 0:02:37]} Nxc5 {[%emt 0:00:00]} 10. Nfd4 {[%emt 0:00:36]} Be4 {[%emt 0:00:00]} 11. O-O {[%emt 0:04:37]} Ne7 {[%emt 0:00:00]} 12. f3 {[%emt 0:08:06]} Bg6 {[%emt 0:00:00]} 13. Nxc5 {[%emt 0:10:14]} Rxc5 {[%emt 0:00:00]} 14. f4 {[%emt 0:00:59]} h5 {[%emt 0:00:00]} 15. Be3 {[%emt 0:07:01]} Rc8 {[%emt 0:00:00]} 16. g3 {[%emt 0:08:14]} Qd7 {[%emt 0:00:00]} 17. a4 {[%emt 0:03:40]} Nc6 {[%emt 0:00:00]} 18. Nb3 {[%emt 0:00:35]} Be7 {[%emt 0:00:00]} 19. a5 {[%emt 0:02:19]} h4 {[%emt 0:00:00]} 20. g4 {[%emt 0:00:31]} h3 {[%emt 0:00:00]} 21. Nc5 {[%emt 0:04:39]} Bxc5 {[%emt 0:00:00]} 22. Bxc5 {[%emt 0:00:06]} Nxe5 {[%emt 0:00:00]} 23. Qd4 {[%emt 0:02:54]} Qc6 {[%emt 0:00:00]} 24. b4 {[%emt 0:19:39]} Nd7 {[%emt 0:03:35]} 25. Qxg7 {[%emt 0:00:19]} Nxc5 {[%emt 0:00:34]} 26. Qxh8+ {[%emt 0:00:04]} Kd7 {[%emt 0:00:16]} 27. Qxh3 {[%emt 0:00:24]} Nb3 {[%emt 0:00:22]} 28. f5 {[%emt 0:00:28]} 1-0

[Event "1st SOA-GM Festival 2024"]
[Site "Bhubaneswar"]
[Date "2024.02.01"]
[Round "1.6"]
[White "Vaibhav Jayant Raut"]
[Black "Neelash Saha"]
[Result "1/2-1/2"]
[WhiteElo "2052"]
[BlackElo "2446"]
[PlyCount "81"]
[EventDate "2024.02.01"]
[EventType "swiss"]
[EventCountry "IND"]
[TimeControl "5400+30"]

1. c4 {[%emt 0:00:03]} e6 {[%emt 0:00:27]} 2. Nf3 {[%emt 0:00:18]} Nf6 {[%emt 0:00:06]} 3. g3 {[%emt 0:00:11]} b6 {[%emt 0:00:25]} 4. Bg2 {[%emt 0:00:13]} Bb7 {[%emt 0:00:05]} 5. O-O {[%emt 0:02:12]} c5 {[%emt 0:01:25]} 6. b3 {[%emt 0:00:52]} Be7 {[%emt 0:00:30]} 7. Bb2 {[%emt 0:00:04]} O-O {[%emt 0:00:06]} 8. Nc3 {[%emt 0:15:37]} a6 {[%emt 0:06:52]} 9. d4 {[%emt 0:02:31]} cxd4 {[%emt 0:00:06]} 10. Qxd4 {[%emt 0:00:04]} Nc6 {[%emt 0:00:55]} 11. Qd2 {[%emt 0:01:13]} Qc7 {[%emt 0:00:08]} 12. Rac1 {[%emt 0:01:13]} Na5 {[%emt 0:05:27]} 13. Rfd1 {[%emt 0:06:17]} Rfd8 {[%emt 0:00:57]} 14. Qc2 {[%emt 0:21:38]} Rac8 {[%emt 0:00:30]} 15. Qb1 {[%emt 0:03:19]} Qb8 {[%emt 0:01:24]} 16. Nd4 {[%emt 0:14:21]} Bxg2 {[%emt 0:06:32]} 17. Kxg2 {[%emt 0:00:51]} Qb7+ {[%emt 0:00:04]} 18. Kg1 {[%emt 0:00:21]} h5 {[%emt 0:03:09]} 19. h3 {[%emt 0:02:16]} Nh7 {[%emt 0:08:33]} 20. Qe4 {[%emt 0:02:13]} Qb8 {[%emt 0:00:33]} 21. Nf3 {[%emt 0:02:19]} Nc6 {[%emt 0:01:44]} 22. Qf4 {[%emt 0:03:48]} b5 {[%emt 0:01:49]} 23. Qxb8 {[%emt 0:03:29]} Rxb8 {[%emt 0:00:06]} 24. cxb5 {[%emt 0:00:06]} axb5 {[%emt 0:00:04]} 25. Ne4 {[%emt 0:00:38]} Nb4 {[%emt 0:02:25]} 26. Be5 {[%emt 0:04:01]} Ra8 {[%emt 0:05:23]} 27. Bc7 {[%emt 0:05:32]} Rdc8 {[%emt 0:00:07]} 28. Bd6 {[%emt 0:00:50]} Rxc1 {[%emt 0:06:51]} 29. Rxc1 {[%emt 0:00:08]} Kf8 {[%emt 0:02:14]} 30. Rc7 {[%emt 0:01:46]} Bxd6 {[%emt 0:03:09]} 31. Nxd6 {[%emt 0:00:02]} Ke7 {[%emt 0:00:07]} 32. Nxb5 {[%emt 0:00:13]} Rxa2 {[%emt 0:00:06]} 33. Nbd4 {[%emt 0:03:03]} Nf6 {[%emt 0:02:40]} 34. Rb7 {[%emt 0:00:28]} Nbd5 {[%emt 0:00:16]} 35. Kf1 {[%emt 0:01:36]} Ne4 {[%emt 0:02:05]} 36. b4 {[%emt 0:01:44]} f6 {[%emt 0:04:23]} 37. Nc6+ {[%emt 0:00:24]} Ke8 {[%emt 0:01:33]} 38. Rb8+ {[%emt 0:00:06]} Kf7 {[%emt 0:00:07]} 39. Rb7 {[%emt 0:00:05]} Ke8 {[%emt 0:10:06]} 40. Rb8+ {[%emt 0:00:06]} Kf7 {[%emt 0:00:40]} 41. Rb7 {[%emt 0:00:06]} 1/2-1/2

[Event "1st SOA-GM Festival 2024"]
[Site "Bhubaneswar"]
[Date "2024.02.01"]
[Round "1.7"]
[White "Sammed Jaykumar, Shete"]
[Black "Vrashank Chouhan"]
[Result "0-1"]
[WhiteElo "2441"]
[BlackElo "2046"]
[PlyCount "104"]
[EventDate "2024.02.01"]
[EventType "swiss"]
[EventCountry "IND"]
[TimeControl "5400+30"]

1. c4 {[%emt 0:00:05]} e5 {[%emt 0:01:23]} 2. d3 {[%emt 0:00:09]} Be7 {[%emt 0:03:33]} 3. Nc3 {[%emt 0:01:45]} d6 {[%emt 0:00:07]} 4. g3 {[%emt 0:00:29]} f5 {[%emt 0:00:08]} 5. Bg2 {[%emt 0:00:08]} Nf6 {[%emt 0:00:10]} 6. e3 {[%emt 0:00:23]} O-O {[%emt 0:00:39]} 7. Nge2 {[%emt 0:00:08]} c6 {[%emt 0:01:33]} 8. f4 {[%emt 1:31:23]} a5 {[%emt 0:05:42]} 9. O-O {[%emt 0:00:00]} Na6 {[%emt 0:06:20]} 10. b3 {[%emt 0:00:00]} Qe8 {[%emt 0:06:37]} 11. Qd2 {[%emt 0:00:00]} Bd8 {[%emt 0:06:15]} 12. Ba3 {[%emt 0:00:00]} Nb4 {[%emt 0:01:47]} 13. Bb2 {[%emt 0:00:00]} Bb6 {[%emt 0:09:12]} 14. d4 {[%emt 0:00:00]} Ng4 {[%emt 0:10:22]} 15. Na4 {[%emt 0:00:00]} Bc7 {[%emt 0:01:19]} 16. a3 {[%emt 0:00:00]} Na6 {[%emt 0:00:36]} 17. e4 {[%emt 0:00:00]} fxe4 {[%emt 0:03:37]} 18. fxe5 {[%emt 0:00:00]} e3 {[%emt 0:09:23]} 19. Qd3 {[%emt 0:00:00]} Rf2 {[%emt 0:02:07]} 20. h3 {[%emt 0:00:00]} Bf5 {[%emt 0:05:31]} 21. Qc3 {[%emt 0:00:00]} Rxg2+ {[%emt 0:07:07]} 22. Kxg2 {[%emt 0:00:00]} Be4+ {[%emt 0:00:03]} 23. Kg1 {[%emt 0:00:00]} Qh5 {[%emt 0:00:07]} 24. Nf4 {[%emt 0:00:00]} Qh6 {[%emt 0:00:02]} 25. Qe1 {[%emt 0:00:00]} Rf8 {[%emt 0:10:07]} 26. Qe2 {[%emt 0:00:00]} Nf2 {[%emt 0:00:27]} 27. Rxf2 {[%emt 0:00:00]} exf2+ {[%emt 0:00:05]} 28. Kxf2 {[%emt 0:00:00]} Rxf4+ {[%emt 0:04:23]} 29. gxf4 {[%emt 0:00:00]} Qxf4+ {[%emt 0:00:04]} 30. Ke1 {[%emt 0:00:00]} Bd8 {[%emt 0:00:05]} 31. Bc1 {[%emt 0:00:00]} Bh4+ {[%emt 0:00:04]} 32. Kd1 {[%emt 0:00:00]} Qf5 {[%emt 0:00:03]} 33. Kd2 {[%emt 0:00:00]} dxe5 {[%emt 0:06:06]} 34. Bb2 {[%emt 0:00:00]} Bg5+ {[%emt 0:00:57]} 35. Ke1 {[%emt 0:00:00]} Bd3 {[%emt 0:01:24]} 36. Qg2 {[%emt 0:00:00]} Bh4+ {[%emt 0:00:31]} 37. Kd2 {[%emt 0:00:00]} Bg5+ {[%emt 0:00:02]} 38. Ke1 {[%emt 0:00:00]} Bh4+ {[%emt 0:00:58]} 39. Kd2 {[%emt 0:00:00]} Bc2 {[%emt 0:00:29]} 40. Rg1 {[%emt 0:00:00]} g6 {[%emt 0:00:04]} 41. Nc3 {[%emt 0:00:00]} Bf2 {[%emt 0:00:56]} 42. Nd1 {[%emt 0:00:00]} Bxg1 {[%emt 0:00:25]} 43. Qxg1 {[%emt 0:00:00]} Qd3+ {[%emt 0:00:18]} 44. Kc1 {[%emt 0:00:00]} Bxb3 {[%emt 0:00:06]} 45. Ne3 {[%emt 0:00:00]} exd4 {[%emt 0:00:20]} 46. Bxd4 {[%emt 0:00:00]} Qxd4 {[%emt 0:00:07]} 47. Qg3 {[%emt 0:00:00]} Qc3+ {[%emt 0:00:48]} 48. Kb1 {[%emt 0:00:00]} Bc2+ {[%emt 0:00:11]} 49. Kc1 {[%emt 0:00:00]} Bb3+ {[%emt 0:01:20]} 50. Kb1 {[%emt 0:00:00]} Bxc4 {[%emt 0:00:19]} 51. Qf4 {[%emt 0:00:00]} Bd3+ {[%emt 0:00:28]} 52. Ka2 {[%emt 0:00:00]} Qc1 {[%emt 0:00:29]} 0-1